fUST/lending_fUST_20251120
["ID","MTS","AMOUNT","RATE_DAILY","PERIOD"]
[394464595,1763605846204,-191.5785411,8.64e-05,2]
[394464596,1763605846213,-12946.34643525,8.642e-05,2]
[394464597,1763605846224,-1147.96383285,8.642e-05,2]
[394464598,1763605846234,-193.4069854,8.65e-05,2]
[394464599,1763605846244,-160.47263098,8.925e-05,2]
[394464600,1763605846254,-564.8826302,8.93e-05,2]
[394464601,1763605846265,-621.4642477,8.978e-05,2]
[394464602,1763605846275,-730.94868918,9e-05,2]
[394464603,1763605846284,-500.0,9.173e-05,2]
[394464604,1763605846293,-501.99138947,9.173e-05,2]
[394464605,1763605846303,-500.0,9.173e-05,2]
[394464606,1763605846313,-162.82513021,9.191e-05,2]
[394464624,1763606039785,883.59853261,8.138e-05,2]
[394464625,1763606048756,883.59853261,8.138e-05,2]
[394464626,1763606064546,202.82265977,8.179e-05,2]
[394464627,1763606073565,202.82265977,8.179e-05,2]
[394464628,1763606087449,202.82265977,8.179e-05,2]
[394464629,1763606095740,202.82265977,8.179e-05,2]
[394464630,1763606101705,456.94306777,0.00013724,7]
[394464631,1763606110926,202.82265977,8.179e-05,2]
[394464632,1763606118694,202.82265977,8.179e-05,2]
[394464633,1763606134478,202.82265977,8.179e-05,2]
[394464634,1763606142402,202.82265977,8.179e-05,2]
[394464635,1763606157622,202.82265977,8.179e-05,2]
[394464636,1763606168057,202.82265977,8.179e-05,2]
[394464637,1763606183347,202.82265977,8.179e-05,2]
[394464638,1763606191621,202.82265977,8.179e-05,2]
[394464639,1763606207882,202.82265977,8.179e-05,2]
[394464640,1763606215589,202.82265977,8.179e-05,2]
[394464641,1763606225327,667.8834618,0.00013724,7]
[394464642,1763606227539,2668.86231336,0.00013724,7]
[394464643,1763606230763,202.82265977,8.179e-05,2]
[394464644,1763606239167,202.82265977,8.179e-05,2]
[394464645,1763606254395,202.82265977,8.239e-05,2]
[394464647,1763606262257,202.82265977,8.239e-05,2]
[394464649,1763606277435,202.82265977,8.239e-05,2]
[394464650,1763606285687,202.82265977,8.239e-05,2]
[394464651,1763606300857,202.82265977,8.239e-05,2]
[394464652,1763606304730,8985.89670115,8.286e-05,2]
[394464653,1763606310836,-2129.35354455,8.203e-05,2]
[394464670,1763606367548,151.0,0.00040097,40]
[394464671,1763606367749,194.1173226,0.00040097,40]
[394464673,1763606371326,1050.0,0.00032877,120]
[394464677,1763606409294,6920.4817727,7.295e-05,2]
[394464685,1763606503181,283.1,0.00040097,20]
[394464692,1763606708559,219.96461504,0.00013724,7]
[394464693,1763606711410,878.9786017,0.00013724,7]
[394464694,1763606762974,300.0,0.00040097,20]
[394464731,1763606926609,16264.68565554,0.00040097,120]
[394464754,1763607031989,-183.47932255,7.915e-05,2]
[394464755,1763607031999,-227.53669165,7.953e-05,2]
[394464756,1763607032010,-202.82265977,7.976e-05,2]
[394464757,1763607032019,-442.73068109,8.095e-05,2]
[394464758,1763607032029,-517.96804098,8.116e-05,2]
[394464759,1763607032040,-129.94321921,8.116e-05,2]
[394464760,1763607032056,-641.89052393,8.124e-05,2]
[394464761,1763607032065,-300.0,8.197e-05,2]
[394464762,1763607032075,-500.0,8.198e-05,2]
[394464764,1763607032084,-500.0,8.198e-05,2]
[394464765,1763607032093,-500.0,8.198e-05,2]
[394464766,1763607032102,-250.0,8.198e-05,2]
[394464767,1763607032112,-500.0,8.198e-05,2]
[394464768,1763607032121,-500.0,8.198e-05,2]
[394464770,1763607032130,-500.0,8.198e-05,2]
[394464772,1763607032140,-248.7814386,8.198e-05,2]
[394464773,1763607032149,-500.0,8.198e-05,2]
[394464774,1763607032158,-500.0,8.263e-05,2]
[394464775,1763607032169,-500.0,8.263e-05,2]
[394464776,1763607032178,-500.0,8.263e-05,2]
[394464777,1763607032188,-500.0,8.263e-05,2]
[394464778,1763607032198,-274.82960524,8.285e-05,2]
[394464779,1763607032207,-25694.48752019,8.286e-05,2]
[394464780,1763607032219,-273.273,8.286e-05,2]
[394464803,1763607037906,-10141.97047493,8.286e-05,2]
[394464815,1763607038014,-2809.73088,8.286e-05,2]
[394464819,1763607038025,-1074.99956033,8.286e-05,2]
[394465026,1763607040182,-87.0722266,8.286e-05,2]
[394465161,1763607046313,-250.0,8.285e-05,2]
[394465162,1763607046324,-21036.8956,8.286e-05,2]
[394465163,1763607046339,-14288.608073,8.286e-05,2]
[394465168,1763607098793,300.0,8.12e-05,2]
[394465169,1763607120870,300.0,8.12e-05,2]
[394465170,1763607143306,300.0,8.12e-05,2]
[394465171,1763607165357,300.0,8.12e-05,2]
[394465179,1763607188688,300.0,8.12e-05,2]
[394465180,1763607211710,300.0,8.12e-05,2]
[394465181,1763607234508,300.0,8.12e-05,2]
[394465182,1763607257529,300.0,8.12e-05,2]
[394465183,1763607273188,198.76620657,8.16e-05,2]
[394465184,1763607280992,198.76620657,8.16e-05,2]
[394465185,1763607291317,465.46620852,8.099e-05,2]
[394465186,1763607296823,198.76620657,8.16e-05,2]
[394465187,1763607304611,198.76620657,8.16e-05,2]
[394465188,1763607320351,198.76620657,8.16e-05,2]
[394465189,1763607321844,8739.4789652,8.184e-05,2]
[394465192,1763607435578,278.58125289,0.00013724,7]
[394465193,1763607441124,210.65197755,0.0004009,20]
[394465195,1763607497587,16181.89028263,0.0004009,120]
[394465203,1763607618211,412.56542626,0.00013724,7]
[394465205,1763607677135,3410.0,8e-05,2]
[394465206,1763607678273,188.568411,7.98e-05,2]
[394465207,1763607715135,198.76620657,7.98e-05,2]
[394465208,1763607716391,1444.25367885,7.698e-05,2]
[394465209,1763607718403,910.14676662,7.702e-05,2]
[394465210,1763607723599,645.11470742,7.957e-05,2]
[394465211,1763607732132,198.76620657,7.98e-05,2]
[394465213,1763607739911,198.76620657,7.98e-05,2]
[394465214,1763607748510,198.76620657,7.98e-05,2]
[394465215,1763607756308,198.76620657,7.98e-05,2]
[394465216,1763607764851,198.76620657,7.98e-05,2]
[394465217,1763607772700,198.76620657,7.98e-05,2]
[394465218,1763607781097,198.76620657,7.98e-05,2]
[394465219,1763607788909,198.76620657,7.98e-05,2]
[394465220,1763607797952,198.76620657,7.98e-05,2]
[394465221,1763607806392,198.76620657,7.98e-05,2]
[394465222,1763607814637,198.76620657,7.98e-05,2]
[394465223,1763607823007,198.76620657,7.98e-05,2]
[394465224,1763607831482,198.76620657,7.98e-05,2]
[394465225,1763607839829,619.19954413,8.015e-05,2]
[394465226,1763607839850,547.04072421,8.015e-05,2]
[394465227,1763607848845,198.76620657,7.997e-05,2]
[394465228,1763607856642,198.76620657,7.997e-05,2]
[394465229,1763607865271,198.76620657,7.997e-05,2]
[394465230,1763607873107,198.76620657,7.997e-05,2]
[394465231,1763607881120,198.76620657,7.997e-05,2]
[394465232,1763607888925,198.76620657,7.997e-05,2]
[394465233,1763607896445,1166.24026834,7.691e-05,2]
[394465234,1763607901997,347.13428393,8.06e-05,2]
[394465235,1763607905226,198.76620657,7.997e-05,2]
[394465236,1763607908218,166.93743106,8.006e-05,2]
[394465237,1763607912988,198.76620657,7.997e-05,2]
[394465239,1763607928629,198.76620657,7.997e-05,2]
[394465240,1763607936404,198.76620657,7.997e-05,2]
[394465241,1763607951616,198.76620657,7.997e-05,2]
[394465242,1763607959605,-198.76620657,8.078e-05,2]
[394465243,1763607959632,-300.0,8.096e-05,2]
[394465244,1763607959659,-300.0,8.096e-05,2]
[394465245,1763607959686,-300.0,8.096e-05,2]
[394465246,1763607959935,198.76620657,7.997e-05,2]
[394465247,1763607964843,500.0,8.097e-05,2]
[394465248,1763607975957,7103.71138029,8.016e-05,2]
[394465249,1763607975984,10000.01,8.016e-05,2]
[394465250,1763607976012,10000.01,8.016e-05,2]
[394465251,1763607976038,10000.01,8.016e-05,2]
[394465252,1763607976064,10000.01,8.016e-05,2]
[394465253,1763607976088,10000.01,8.016e-05,2]
[394465254,1763607976111,10000.01,8.016e-05,2]
[394465255,1763607976136,10000.01,8.016e-05,2]
[394465256,1763607976161,10000.01,8.016e-05,2]
[394465257,1763607976187,10000.01,8.016e-05,2]
[394465258,1763607983947,-3585.10450386,7.936e-05,2]
[394465259,1763607984034,-2829.80099228,7.936e-05,2]
[394465260,1763607984079,-1791.29939252,8.016e-05,2]
[394465261,1763607984156,-10000.01,8.016e-05,2]
[394465262,1763607984374,-347.59946835,8.016e-05,2]
[394465263,1763607984399,-9304.8110633,8.016e-05,2]
[394465271,1763607994059,500.0,8.096e-05,2]
[394465272,1763607994092,620.87069757,8.096e-05,2]
[394465273,1763607994132,500.0,8.096e-05,2]
[394465274,1763607994178,620.87069757,8.096e-05,2]
[394465275,1763607994220,314.71742447,8.096e-05,2]
[394465276,1763607994250,500.0,8.096e-05,2]
[394465277,1763607994287,620.87069757,8.096e-05,2]
[394465278,1763607994333,500.0,8.096e-05,2]
[394465279,1763607994377,500.0,8.096e-05,2]
[394465280,1763607994413,620.87069757,8.096e-05,2]
[394465281,1763607994471,620.87069757,8.096e-05,2]
[394465282,1763607994506,615.91303235,8.096e-05,2]
[394465283,1763607994544,620.87069757,8.096e-05,2]
[394465284,1763607994596,620.87069757,8.096e-05,2]
[394465285,1763607994639,620.87069757,8.096e-05,2]
[394465286,1763607994685,620.87069757,8.096e-05,2]
[394465287,1763607994727,620.87069757,8.096e-05,2]
[394465288,1763607994777,360.67256748,8.096e-05,2]
[394465289,1763607994802,260.19813009,8.096e-05,2]
[394465290,1763607994841,620.87069757,8.096e-05,2]
[394465291,1763607994893,620.87069757,8.096e-05,2]
[394465292,1763607994937,620.87069757,8.096e-05,2]
[394465293,1763607994980,620.87069757,8.096e-05,2]
[394465294,1763607995038,620.87069757,8.096e-05,2]
[394465295,1763607995092,620.87069757,8.096e-05,2]
[394465296,1763607995139,620.87069757,8.096e-05,2]
[394465297,1763607995192,620.87069757,8.096e-05,2]
[394465298,1763607995243,620.87069757,8.096e-05,2]
[394465299,1763607995282,620.87069757,8.096e-05,2]
[394465300,1763607995334,620.87069757,8.096e-05,2]
[394465301,1763607995374,620.87069757,8.096e-05,2]
[394465302,1763607995422,620.87069757,8.096e-05,2]
[394465303,1763607995466,620.87069757,8.096e-05,2]
[394465304,1763607995514,620.87069757,8.096e-05,2]
[394465305,1763607995560,426.75140636,8.096e-05,2]
[394465306,1763607995584,194.11929121,8.096e-05,2]
[394465307,1763607995656,620.87069757,8.096e-05,2]
[394465308,1763607995704,620.87069757,8.096e-05,2]
[394465309,1763607995874,620.87069757,8.096e-05,2]
[394465310,1763607995925,620.87069757,8.096e-05,2]
[394465311,1763607995971,620.87069757,8.096e-05,2]
[394465312,1763607996006,620.87069757,8.096e-05,2]
[394465313,1763607996056,620.87069757,8.096e-05,2]
[394465314,1763607996106,620.87069757,8.096e-05,2]
[394465315,1763607996142,620.87069757,8.096e-05,2]
[394465316,1763607996186,620.87069757,8.096e-05,2]
[394465317,1763607996227,620.87069757,8.096e-05,2]
[394465318,1763607996268,620.87069757,8.096e-05,2]
[394465319,1763607996309,620.87069757,8.096e-05,2]
[394465320,1763607996355,620.87069757,8.096e-05,2]
[394465321,1763607996404,620.87069757,8.096e-05,2]
[394465322,1763607996449,492.83024524,8.096e-05,2]
[394465323,1763607996473,128.04045233,8.096e-05,2]
[394465324,1763607996509,620.87069757,8.096e-05,2]
[394465325,1763607996564,620.87069757,8.096e-05,2]
[394465326,1763607996604,620.87069757,8.096e-05,2]
[394465327,1763607996642,620.87069757,8.096e-05,2]
[394465328,1763607996688,620.87069757,8.096e-05,2]
[394465329,1763607996727,620.87069757,8.096e-05,2]
[394465330,1763607996779,620.87069757,8.096e-05,2]
[394465331,1763607996815,620.87069757,8.096e-05,2]
[394465332,1763607996859,620.87069757,8.096e-05,2]
[394465333,1763607996904,620.87069757,8.096e-05,2]
[394465334,1763607996939,620.87069757,8.096e-05,2]
[394465335,1763607996978,620.87069757,8.096e-05,2]
[394465336,1763607997014,620.87069757,8.096e-05,2]
[394465337,1763607997054,620.87069757,8.096e-05,2]
[394465338,1763607997088,620.87069757,8.096e-05,2]
[394465339,1763607997126,558.90908412,8.096e-05,2]
[394465340,1763607997153,61.96161345,8.096e-05,2]
[394465341,1763607997192,620.87069757,8.096e-05,2]
[394465342,1763607997228,620.87069757,8.096e-05,2]
[394465343,1763607997261,620.87069757,8.096e-05,2]
[394465344,1763607997297,620.87069757,8.096e-05,2]
[394465345,1763607997334,620.87069757,8.096e-05,2]
[394465346,1763607997366,620.87069757,8.096e-05,2]
[394465347,1763607997397,620.87069757,8.096e-05,2]
[394465348,1763607997429,620.87069757,8.096e-05,2]
[394465349,1763607997470,620.87069757,8.096e-05,2]
[394465350,1763607998952,187.6936316,8.015e-05,2]
[394465351,1763608010280,1064.1,0.00032877,120]
[394465352,1763608012670,500.0,8.096e-05,2]
[394465353,1763608012704,291.92046673,8.096e-05,2]
[394465354,1763608012733,500.0,8.096e-05,2]
[394465355,1763608012762,522.64013529,8.096e-05,2]
[394465356,1763608012794,500.0,8.096e-05,2]
[394465357,1763608012829,500.0,8.096e-05,2]
[394465358,1763608012858,500.0,8.096e-05,2]
[394465359,1763608014812,187.6936316,8.021e-05,2]
[394465360,1763608018281,1161.20647336,8.023e-05,2]
[394465361,1763608022686,187.6936316,8.021e-05,2]
[394465362,1763608023164,3016.18604361,8.096e-05,2]
[394465363,1763608023199,2132.66961781,8.096e-05,2]
[394465364,1763608023225,883.5164258,8.096e-05,2]
[394465365,1763608023259,3016.18604361,8.096e-05,2]
[394465366,1763608023293,3016.18604361,8.096e-05,2]
[394465367,1763608023332,3016.18604361,8.096e-05,2]
[394465368,1763608023367,67.93544337,8.096e-05,2]
[394465369,1763608023395,2948.25060024,8.096e-05,2]
[394465370,1763608023430,3016.18604361,8.096e-05,2]
[394465371,1763608023479,3016.18604361,8.096e-05,2]
[394465372,1763608023515,1019.38731254,8.096e-05,2]
[394465373,1763608023542,1996.79873107,8.096e-05,2]
[394465374,1763608023589,3016.18604361,8.096e-05,2]
[394465375,1763608023643,3016.18604361,8.096e-05,2]
[394465376,1763608023679,1970.83918171,8.096e-05,2]
[394465377,1763608023707,1045.3468619,8.096e-05,2]
[394465378,1763608023751,3016.18604361,8.096e-05,2]
[394465379,1763608023786,3016.18604361,8.096e-05,2]
[394465380,1763608023821,2922.29105088,8.096e-05,2]
[394465381,1763608035714,710.73436598,0.00013724,7]
[394465382,1763608037656,2632.29330604,8.015e-05,2]
[394465383,1763608168102,339.0,0.00028082,120]
[394465384,1763608169721,688.5125983,8.014e-05,7]
[394465385,1763608174681,688.51259829,8.109e-05,7]
[394465386,1763608179705,688.51259829,8.203e-05,7]
[394465417,1763608232142,-667.74972423,7.793e-05,2]
[394465419,1763608232152,-187.6936316,7.934e-05,2]
[394465421,1763608232161,-1502.43687952,7.981e-05,2]
[394465423,1763608232170,-286.0,8.013e-05,2]
[394465425,1763608232179,-400.0,8.013e-05,2]
[394465427,1763608232188,-500.0,8.014e-05,2]
[394465428,1763608232197,-1200.0,8.014e-05,2]
[394465429,1763608232206,-179.54589248,8.014e-05,2]
[394465431,1763608232215,-310.21338519,8.014e-05,2]
[394465433,1763608232225,-1368.17044012,8.014e-05,2]
[394465435,1763608232234,-1368.17044012,8.014e-05,2]
[394465437,1763608232243,-1368.17044012,8.014e-05,2]
[394465439,1763608232252,-1368.17044012,8.014e-05,2]
[394465441,1763608232261,-1368.17044012,8.014e-05,2]
[394465443,1763608232270,-1368.17044012,8.014e-05,2]
[394465445,1763608232280,-1368.17044012,8.014e-05,2]
[394465447,1763608232290,-1368.17044012,8.014e-05,2]
[394465449,1763608232298,-1368.17044012,8.014e-05,2]
[394465451,1763608232307,-1368.17044012,8.014e-05,2]
[394465453,1763608232317,-1368.17044012,8.014e-05,2]
[394465455,1763608232325,-1368.17044012,8.014e-05,2]
[394465457,1763608232335,-1368.17044012,8.014e-05,2]
[394465459,1763608232344,-1368.17044012,8.014e-05,2]
[394465461,1763608232352,-1368.17044012,8.014e-05,2]
[394465463,1763608232361,-1368.17044012,8.014e-05,2]
[394465464,1763608232370,-1368.17044012,8.014e-05,2]
[394465466,1763608232379,-1368.17044012,8.014e-05,2]
[394465468,1763608232388,-1368.17044012,8.014e-05,2]
[394465470,1763608232398,-1368.17044012,8.014e-05,2]
[394465472,1763608232407,-1368.17044012,8.014e-05,2]
[394465474,1763608232416,-101.88438927,8.014e-05,2]
[394465477,1763608232431,-1010.00614396,8.014e-05,2]
[394465479,1763608232443,-256.27990689,8.014e-05,2]
[394465481,1763608232452,-787.66241201,8.014e-05,2]
[394465483,1763608232463,-580.50802811,8.014e-05,2]
[394465485,1763608232472,-1368.17044012,8.014e-05,2]
[394465487,1763608232482,-1368.17044012,8.014e-05,2]
[394465489,1763608232491,-1368.17044012,8.014e-05,2]
[394465491,1763608232500,-1368.17044012,8.014e-05,2]
[394465493,1763608232509,-1368.17044012,8.014e-05,2]
[394465494,1763608232519,-1368.17044012,8.014e-05,2]
[394465495,1763608232528,-1368.17044012,8.014e-05,2]
[394465496,1763608232538,-1368.17044012,8.014e-05,2]
[394465497,1763608232547,-1368.17044012,8.014e-05,2]
[394465498,1763608232557,-1368.17044012,8.014e-05,2]
[394465499,1763608232566,-1368.17044012,8.014e-05,2]
[394465500,1763608232576,-1368.17044012,8.014e-05,2]
[394465501,1763608232585,-1368.17044012,8.014e-05,2]
[394465502,1763608232596,-1368.17044012,8.014e-05,2]
[394465503,1763608232605,-1368.17044012,8.014e-05,2]
[394465504,1763608232617,-1368.17044012,8.014e-05,2]
[394465505,1763608232627,-1368.17044012,8.014e-05,2]
[394465506,1763608232638,-1368.17044012,8.014e-05,2]
[394465507,1763608232648,-1368.17044012,8.014e-05,2]
[394465508,1763608232658,-1368.17044012,8.014e-05,2]
[394465509,1763608232668,-1368.17044012,8.014e-05,2]
[394465510,1763608232677,-1368.17044012,8.014e-05,2]
[394465511,1763608232807,-1368.17044012,8.014e-05,2]
[394465512,1763608232816,-1368.17044012,8.014e-05,2]
[394465513,1763608232826,-1368.17044012,8.014e-05,2]
[394465514,1763608232835,-1368.17044012,8.014e-05,2]
[394465515,1763608232844,-1368.17044012,8.014e-05,2]
[394465516,1763608232853,-1368.17044012,8.014e-05,2]
[394465517,1763608232861,-1368.17044012,8.014e-05,2]
[394465518,1763608232871,-1368.17044012,8.014e-05,2]
[394465519,1763608232880,-1368.17044012,8.014e-05,2]
[394465520,1763608232890,-1368.17044012,8.014e-05,2]
[394465521,1763608232899,-1368.17044012,8.014e-05,2]
[394465522,1763608232909,-1368.17044012,8.014e-05,2]
[394465523,1763608232918,-1368.17044012,8.014e-05,2]
[394465524,1763608232927,-1368.17044012,8.014e-05,2]
[394465525,1763608232937,-1368.17044012,8.014e-05,2]
[394465526,1763608232946,-1354.48873572,8.014e-05,2]
[394465527,1763608232955,-1354.48873572,8.014e-05,2]
[394465528,1763608232967,-1354.48873572,8.014e-05,2]
[394465529,1763608232977,-1354.48873572,8.014e-05,2]
[394465530,1763608232986,-1354.48873572,8.014e-05,2]
[394465531,1763608232995,-1354.48873572,8.014e-05,2]
[394465532,1763608233005,-1354.48873572,8.014e-05,2]
[394465533,1763608233014,-1354.48873572,8.014e-05,2]
[394465534,1763608233023,-1354.48873572,8.014e-05,2]
[394465535,1763608233032,-1354.48873572,8.014e-05,2]
[394465536,1763608233042,-1354.48873572,8.014e-05,2]
[394465537,1763608233051,-1354.48873572,8.014e-05,2]
[394465538,1763608233060,-1354.48873572,8.014e-05,2]
[394465539,1763608233069,-1354.48873572,8.014e-05,2]
[394465540,1763608233078,-1354.48873572,8.014e-05,2]
[394465541,1763608233087,-1354.48873572,8.014e-05,2]
[394465542,1763608233096,-1354.48873572,8.014e-05,2]
[394465543,1763608233106,-1354.48873572,8.014e-05,2]
[394465544,1763608233117,-1354.48873572,8.014e-05,2]
[394465545,1763608233126,-1354.48873572,8.014e-05,2]
[394465546,1763608233137,-1354.48873572,8.014e-05,2]
[394465547,1763608233147,-1354.48873572,8.014e-05,2]
[394465548,1763608233156,-1354.48873572,8.014e-05,2]
[394465549,1763608233165,-1354.48873572,8.014e-05,2]
[394465550,1763608233175,-1354.48873572,8.014e-05,2]
[394465551,1763608233184,-1354.48873572,8.014e-05,2]
[394465552,1763608233193,-1354.48873572,8.014e-05,2]
[394465553,1763608233203,-1354.48873572,8.014e-05,2]
[394465554,1763608233213,-1354.48873572,8.014e-05,2]
[394465555,1763608233222,-1354.48873572,8.014e-05,2]
[394465556,1763608233231,-1504.98748411,8.014e-05,2]
[394465557,1763608233241,-203.04311395,8.015e-05,2]
[394465558,1763608233250,-42730.08398808,8.015e-05,2]
[394465559,1763608233260,-330.26278059,8.108e-05,2]
[394465560,1763608233271,-2047.83022489,8.155e-05,2]
[394465561,1763608233281,-11000.66792532,8.184e-05,2]
[394465562,1763608233295,-912.47096692,8.184e-05,2]
[394465563,1763608233306,-1099.42879595,8.184e-05,2]
[394465581,1763608238103,-314.83229562,8.184e-05,2]
[394465781,1763608240204,-1000.0,8.184e-05,2]
[394465800,1763608246408,-6593.11963053,8.184e-05,2]
[394465803,1763608301728,500.0,0.00040089,30]
[394465804,1763608301978,500.0,0.00040089,30]
[394465805,1763608302236,331.24332927,0.00040089,30]
[394465806,1763608339941,219.53876515,0.00013724,7]
[394465807,1763608557725,481.78922267,7.834e-05,2]
[394465808,1763608566382,481.78922267,7.834e-05,2]
[394465809,1763608582428,8600.043065,7.549e-05,2]
[394465810,1763608621923,2064.36706375,7.66e-05,2]
[394465811,1763608655027,205.967456,0.00040073,120]
[394465812,1763608718399,330.98004896,0.00040074,120]
[394465813,1763608802916,624.84171108,7.705e-05,2]
[394465814,1763608814602,-300.0,7.912e-05,2]
[394465815,1763608814632,-800.0,7.912e-05,2]
[394465816,1763608829753,-198.98225167,7.913e-05,2]
[394465817,1763608829786,-500.0,7.913e-05,2]
[394465818,1763608829818,-500.0,7.913e-05,2]
[394465819,1763608829850,-500.0,7.913e-05,2]
[394465820,1763608829881,-500.0,7.913e-05,2]
[394465821,1763608829914,-500.0,7.913e-05,2]
[394465822,1763608829945,-500.0,7.913e-05,2]
[394465823,1763608829975,-500.0,7.913e-05,2]
[394465824,1763608830007,-500.0,7.913e-05,2]
[394465825,1763608830038,-500.0,7.913e-05,2]
[394465826,1763608830070,-102.04549666,7.913e-05,2]
[394465827,1763608830223,-397.95450334,7.913e-05,2]
[394465828,1763608830256,-500.0,7.913e-05,2]
[394465829,1763608830291,-500.0,7.913e-05,2]
[394465830,1763608830324,-500.0,7.913e-05,2]
[394465831,1763608830356,-500.0,7.913e-05,2]
[394465832,1763608830388,-500.0,7.913e-05,2]
[394465833,1763608830423,-500.0,7.913e-05,2]
[394465834,1763608830581,-500.0,7.913e-05,2]
[394465835,1763608830617,-500.0,7.913e-05,2]
[394465836,1763608830652,-500.0,7.913e-05,2]
[394465837,1763608830811,-500.0,7.913e-05,2]
[394465838,1763608830844,-278.45124418,7.913e-05,2]
[394465839,1763608830875,-500.0,7.913e-05,2]
[394465840,1763608830908,-500.0,7.913e-05,2]
[394465841,1763608830940,-500.0,7.913e-05,2]
[394465842,1763608831512,-3679.18917542,7.915e-05,2]
[394465843,1763608831530,-10000.01,7.915e-05,2]
[394465844,1763608831543,-10000.01,7.915e-05,2]
[394465845,1763608831557,-10000.01,7.915e-05,2]
[394465846,1763608831574,-10000.01,7.915e-05,2]
[394465847,1763608831596,-10000.01,7.915e-05,2]
[394465848,1763608832619,-10000.01,7.915e-05,2]
[394465849,1763608832720,-10000.01,7.915e-05,2]
[394465850,1763608832830,-10000.01,7.915e-05,2]
[394465851,1763608850904,-10000.01,7.915e-05,2]
[394465852,1763608851210,-10000.01,7.915e-05,2]
[394465853,1763608856816,-10000.01,7.915e-05,2]
[394465854,1763608856928,-10000.01,7.915e-05,2]
[394465855,1763608857059,-10000.01,7.915e-05,2]
[394465856,1763608859839,-10000.01,7.915e-05,2]
[394465900,1763608886688,156.581283,0.00040074,120]
[394465901,1763608886826,300.0,7.679e-05,2]
[394465926,1763608893000,151.0,0.00040074,120]
[394465929,1763608893317,164.907861,0.00040074,120]
[394465933,1763608894343,155.093224,0.00040074,120]
[394465946,1763608914219,169.244649,0.00040074,120]
[394465947,1763608926301,3225.57353712,7.675e-05,2]
[394466038,1763608985433,188.930134,0.00030137,120]
[394466109,1763609025391,151.0,0.0004007,120]
[394466111,1763609025684,151.0,0.0004007,120]
[394466113,1763609025968,151.0,0.0004007,120]
[394466116,1763609026334,151.0,0.0004007,120]
[394466118,1763609026542,151.0,0.0004007,120]
[394466121,1763609026835,151.0,0.0004007,120]
[394466123,1763609027134,151.0,0.0004007,120]
[394466126,1763609027431,151.0,0.0004007,120]
[394466129,1763609027774,156.118661,0.0004007,120]
[394466132,1763609028200,196.434313,0.0004007,120]
[394466133,1763609028491,196.434313,0.0004007,120]
[394466134,1763609028775,196.434313,0.0004007,120]
[394466135,1763609029068,196.434313,0.0004007,120]
[394466136,1763609029436,196.434313,0.0004007,120]
[394466137,1763609029724,196.434313,0.0004007,120]
[394466138,1763609030003,196.434313,0.0004007,120]
[394466139,1763609030297,196.434313,0.0004007,120]
[394466140,1763609030593,196.434313,0.0004007,120]
[394466141,1763609030880,196.434313,0.0004007,120]
[394466142,1763609031494,196.434313,0.0004007,120]
[394466143,1763609031833,196.434313,0.0004007,120]
[394466144,1763609032126,196.434313,0.0004007,120]
[394466145,1763609032416,196.434313,0.0004007,120]
[394466146,1763609032705,196.434313,0.0004007,120]
[394466147,1763609033012,196.434313,0.0004007,120]
[394466148,1763609033318,196.434313,0.0004007,120]
[394466149,1763609034072,196.434313,0.0004007,120]
[394466150,1763609034368,196.434313,0.0004007,120]
[394466151,1763609034651,196.434308,0.0004007,120]
[394466191,1763609059377,151.0,0.0004007,120]
[394466192,1763609059675,284.245545,0.0004007,120]
[394466244,1763609071503,154.410528,0.0004007,120]
[394466478,1763609133873,151.0,0.0004007,60]
[394466480,1763609134170,151.0,0.0004007,60]
[394466482,1763609134500,295.109862,0.0004007,60]
[394466492,1763609137479,157.036448,0.0004007,120]
[394466496,1763609146911,154.988973,0.0004007,120]
[394466585,1763609187314,151.0,0.0004007,120]
[394466586,1763609187633,151.0,0.0004007,120]
[394466588,1763609187963,151.0,0.0004007,120]
[394466590,1763609188244,151.0,0.0004007,120]
[394466592,1763609188541,151.0,0.0004007,120]
[394466595,1763609188846,255.672807,0.0004007,120]
[394466680,1763609204584,226.316481,0.0004007,120]
[394466681,1763609204750,226.316481,0.0004007,120]
[394466682,1763609205245,226.316481,0.0004007,120]
[394466683,1763609205574,226.316481,0.0004007,120]
[394466684,1763609205860,226.316481,0.0004007,120]
[394466685,1763609206144,226.316481,0.0004007,120]
[394466687,1763609206567,226.316481,0.0004007,120]
[394466689,1763609206896,226.316481,0.0004007,120]
[394466691,1763609207183,226.316481,0.0004007,120]
[394466692,1763609207473,226.316481,0.0004007,120]